fUSD/lending_fUSD_20240708
["ID","MTS","AMOUNT","RATE_DAILY","PERIOD"]
[331543528,1720475450070,-1500.0,0.00021859,2]
[331543529,1720475450079,-1500.0,0.00021863,2]
[331543530,1720475450089,-150.0,0.0002188,2]
[331543531,1720475450098,-150.0,0.00021893,2]
[331543532,1720475450108,-150.0,0.00021911,2]
[331543533,1720475450117,-1802.61,0.00021918,2]
[331543534,1720475450127,-157.14,0.00021918,2]
[331543535,1720475450137,-707.93,0.00021918,2]
[331543536,1720475450147,-150.0,0.00021923,2]
[331543537,1720475450157,-150.0,0.00021924,2]
[331543538,1720475450166,-150.0,0.00021925,2]
[331543539,1720475450175,-1500.0,0.00021929,2]
[331543540,1720475450185,-150.0,0.0002193,2]
[331543541,1720475450194,-150.0,0.00021937,2]
[331543542,1720475450203,-150.0,0.00021937,2]
[331543543,1720475450212,-1500.0,0.00021946,2]
[331543544,1720475450222,-300.0,0.00021947,2]
[331543545,1720475450232,-150.0,0.00021964,2]
[331543546,1720475450242,-150.0,0.00021997,2]
[331543547,1720475450252,-150.0,0.00021999,2]
[331543548,1720475450262,-1488.27565616,0.00022,2]
[331543549,1720475450271,-793.55353201,0.00022,2]
[331543550,1720475450281,-10012.26669252,0.00022,7]
[331543551,1720475450291,-1300.0,0.00022,2]
[331543552,1720475450300,-1000.0,0.00022,2]
[331543553,1720475450310,-150.0,0.00022,2]
[331543554,1720475450319,-423.4,0.00022019,2]
[331543555,1720475450330,-150.0,0.00022025,2]
[331543556,1720475450340,-1500.0,0.0002203,2]
[331543557,1720475450350,-150.0,0.00022037,2]
[331543558,1720475450364,-150.0,0.00022056,2]
[331543559,1720475450374,-150.0,0.00022057,2]
[331543560,1720475450383,-150.0,0.00022066,2]
[331543561,1720475450393,-150.0,0.00022067,2]
[331543562,1720475450403,-150.0,0.00022069,2]
[331543563,1720475450412,-150.0,0.0002207,2]
[331543564,1720475450422,-150.0,0.00022074,2]
[331543565,1720475450434,-150.0,0.00022077,2]
[331543566,1720475450444,-150.0,0.00022077,2]
[331543567,1720475450454,-150.0,0.00022085,2]
[331543568,1720475450464,-150.0,0.00022089,2]
[331543569,1720475450474,-150.0,0.00022094,2]
[331543570,1720475450484,-150.0,0.00022098,2]
[331543571,1720475450494,-1536.85978934,0.000221,2]
[331543572,1720475450503,-150.0,0.00022101,2]
[331543573,1720475450512,-300.0,0.00022123,2]
[331543574,1720475450522,-150.0,0.00022127,2]
[331543575,1720475450531,-150.0,0.00022131,2]
[331543576,1720475450540,-1500.0,0.00022134,2]
[331543577,1720475450551,-150.0,0.00022135,2]
[331543578,1720475450560,-150.0,0.00022151,2]
[331543579,1720475450569,-150.0,0.00022173,2]
[331543580,1720475450579,-150.0,0.00022196,2]
[331543581,1720475450588,-300.0,0.00022197,2]
[331543582,1720475450597,-2500.0,0.000222,2]
[331543583,1720475450607,-150.0,0.00022201,2]
[331543584,1720475450618,-150.0,0.00022208,2]
[331543585,1720475450628,-150.0,0.00022208,2]
[331543586,1720475450637,-150.0,0.00022209,2]
[331543587,1720475450647,-1130.77288993,0.00022215,2]
[331543588,1720475450657,-150.0,0.00022217,2]
[331543589,1720475450667,-150.0,0.00022235,2]
[331543590,1720475450677,-150.0,0.00022235,2]
[331543591,1720475450686,-151.0,0.00022236,7]
[331543592,1720475450697,-151.0,0.00022236,7]
[331543593,1720475450706,-151.0,0.00022236,7]
[331543594,1720475450716,-151.0,0.00022236,7]
[331543595,1720475450726,-151.0,0.00022236,7]
[331543596,1720475450735,-151.0,0.00022236,7]
[331543597,1720475450744,-175.911632,0.00022236,7]
[331543598,1720475450754,-151.0,0.00022236,7]
[331543599,1720475450763,-151.0,0.00022236,7]
[331543600,1720475450772,-151.0,0.00022236,7]
[331543601,1720475450782,-417.841596,0.00022236,7]
[331543602,1720475450791,-417.841596,0.00022236,7]
[331543603,1720475450801,-151.0,0.00022236,7]
[331543604,1720475450810,-151.0,0.00022236,7]
[331543605,1720475450819,-151.0,0.00022236,7]
[331543606,1720475450829,-204.158447,0.00022236,7]
[331543607,1720475450838,-151.595079,0.00022236,7]
[331543608,1720475450847,-151.0,0.00022236,7]
[331543609,1720475450856,-151.0,0.00022236,7]
[331543610,1720475450865,-501.548171,0.00022236,7]
[331543611,1720475450874,-151.0,0.00022236,7]
[331543612,1720475450883,-501.548171,0.00022236,7]
[331543613,1720475450892,-151.0,0.00022236,7]
[331543614,1720475450901,-151.0,0.00022236,7]
[331543615,1720475450911,-162.438514,0.00022236,7]
[331543616,1720475450920,-151.0,0.00022236,7]
[331543617,1720475450929,-151.0,0.00022236,7]
[331543618,1720475450938,-162.438514,0.00022236,7]
[331543619,1720475450947,-151.0,0.00022236,7]
[331543620,1720475450957,-151.0,0.00022236,7]
[331543621,1720475450965,-294.370539,0.00022236,7]
[331543622,1720475450974,-294.370539,0.00022236,7]
[331543623,1720475450983,-151.0,0.00022236,7]
[331543624,1720475450993,-221.679464,0.00022236,7]
[331543625,1720475451002,-151.0,0.00022236,7]
[331543626,1720475451011,-151.0,0.00022236,7]
[331543627,1720475451020,-151.0,0.00022236,7]
[331543628,1720475451029,-151.0,0.00022236,7]
[331543629,1720475451038,-300.0,0.00022238,2]
[331543630,1720475451047,-968.4000474,0.00022239,2]
[331543631,1720475451056,-151.0,0.00022244,7]
[331543632,1720475451066,-151.0,0.00022244,7]
[331543633,1720475451076,-151.0,0.00022244,7]
[331543634,1720475451085,-151.0,0.00022244,7]
[331543635,1720475451095,-151.528489,0.00022244,7]
[331543636,1720475451103,-224.50593,0.00022244,7]
[331543637,1720475451112,-197.636856,0.00022244,7]
[331543638,1720475451122,-197.636856,0.00022244,7]
[331543639,1720475451130,-151.0,0.00022244,7]
[331543640,1720475451139,-151.0,0.00022244,7]
[331543641,1720475451148,-151.0,0.00022244,7]
[331543642,1720475451157,-151.0,0.00022244,7]
[331543643,1720475451166,-1500.0,0.00022248,2]
[331543644,1720475451175,-150.0,0.00022259,2]
[331543645,1720475451184,-150.0,0.00022265,2]
[331543646,1720475451194,-150.0,0.00022272,2]
[331543647,1720475451203,-1500.0,0.00022281,2]
[331543648,1720475451212,-600.0,0.0002269,7]
[331543649,1720475451221,-157.14,0.00022914,2]
[331543650,1720475451230,-200.0,0.00023,2]
[331543651,1720475451239,-151.0,0.00023368,7]
[331543652,1720475451249,-151.0,0.00023368,7]
[331543653,1720475451257,-151.0,0.00023368,7]
[331543654,1720475451266,-151.0,0.00023368,7]
[331543655,1720475451275,-151.0,0.00023368,7]
[331543656,1720475451284,-151.0,0.00023368,7]
[331543657,1720475451293,-151.0,0.00023368,7]
[331543658,1720475451301,-151.0,0.00023368,7]
[331543659,1720475451310,-151.0,0.00023368,7]
[331543660,1720475451319,-1927.33599983,0.0002354,2]
[331543661,1720475451328,-545.3132,0.0002381,2]
[331543662,1720475451337,-157.14,0.0002391,2]
[331543663,1720475451346,-1236.77657622,0.00024,2]
[331543664,1720475451364,-113.22342378,0.00024,2]
[331543665,1720475451373,-151.0,0.00024,7]
[331543666,1720475451381,-151.0,0.00024,7]
[331543667,1720475451390,-151.0,0.00024,7]
[331543668,1720475451400,-179.515258,0.00024,7]
[331543669,1720475451409,-151.0,0.00024,7]
[331543670,1720475451418,-151.0,0.00024,7]
[331543671,1720475451427,-411.935072,0.00024,7]
[331543672,1720475451438,-151.0,0.00024,7]
[331543673,1720475451447,-151.0,0.00024,7]
[331543674,1720475451456,-151.0,0.00024,7]
[331543675,1720475451465,-151.0,0.00024,7]
[331543676,1720475451475,-151.0,0.00024,7]
[331543677,1720475451484,-86.42704388,0.00024,7]
[331543678,1720475451496,-64.57295612,0.00024,7]
[331543679,1720475451505,-151.0,0.00024,7]
[331543680,1720475451515,-151.0,0.00024,7]
[331543681,1720475451523,-151.0,0.00024,7]
[331543682,1720475451533,-151.0,0.00024,7]
[331543683,1720475451542,-151.0,0.00024,7]
[331543684,1720475451550,-151.0,0.00024,7]
[331543685,1720475451559,-423.4,0.00024283,2]
[331543686,1720475451568,-500.0,0.00024455,2]
[331543687,1720475451577,-171.8,0.00024563,2]
[331543688,1720475451586,-2500.0,0.000249,2]
[331543689,1720475451595,-151.0,0.000249,7]
[331543690,1720475451604,-286.9,0.000249,7]
[331543691,1720475451614,-157.14,0.00024907,2]
[331543692,1720475451624,-289.33001581,0.00025,2]
[331543693,1720475451634,-932.12365454,0.00025,2]
[331543694,1720475451643,-1984.09775163,0.00025,2]
[331543695,1720475451652,-225.60259739,0.00025,2]
[331543696,1720475451661,-326.60332768,0.00025,2]
[331543697,1720475451670,-1284.49060706,0.00025,30]
[331543698,1720475451679,-169.93311326,0.00025,2]
[331543699,1720475451688,-155.0,0.00025,2]
[331543700,1720475451697,-155.0,0.00025,2]
[331543701,1720475451707,-151.0,0.00025,7]
[331543702,1720475451716,-151.0,0.00025,7]
[331543703,1720475451725,-151.0,0.00025,7]
[331543704,1720475451734,-151.0,0.00025,7]
[331543705,1720475451743,-156.087441,0.00025,7]
[331543706,1720475451752,-151.0,0.00025,7]
[331543707,1720475451762,-151.0,0.00025,7]
[331543708,1720475451771,-151.0,0.00025,7]
[331543709,1720475451781,-1000.0,0.00025205,2]
[331543710,1720475451790,-280.0,0.000253,10]
[331543711,1720475451799,-179.79559481,0.000259,2]
[331543712,1720475451808,-157.14,0.00025903,2]
[331543713,1720475451817,-1400.0,0.00026,2]
[331543714,1720475451827,-150.0,0.00026012,2]
[331543715,1720475451836,-150.0,0.00026079,2]
[331543716,1720475451846,-582.070905,0.00026198,66]
[331543717,1720475451855,-500.0,0.0002624,2]
[331543718,1720475451864,-500.0,0.0002624,2]
[331543719,1720475451873,-500.0,0.0002624,2]
[331543720,1720475451883,-500.0,0.0002624,2]
[331543721,1720475451892,-500.0,0.0002624,2]
[331543722,1720475451901,-500.0,0.0002624,2]
[331543723,1720475451910,-500.0,0.0002624,2]
[331543724,1720475451919,-500.0,0.0002624,2]
[331543725,1720475451928,-500.0,0.0002624,2]
[331543726,1720475451938,-500.0,0.0002624,2]
[331543727,1720475451947,-500.0,0.0002624,2]
[331543728,1720475451955,-500.0,0.0002624,2]
[331543729,1720475451964,-500.0,0.0002624,2]
[331543730,1720475451974,-500.0,0.0002624,2]
[331543731,1720475451983,-500.0,0.0002624,2]
[331543732,1720475451992,-500.0,0.0002624,2]
[331543733,1720475452001,-500.0,0.0002624,2]
[331543734,1720475452010,-627.30667995,0.0002624,2]
[331543735,1720475452019,-500.0,0.0002624,2]
[331543736,1720475452029,-500.0,0.0002624,2]
[331543737,1720475452038,-500.0,0.0002624,2]
[331543738,1720475452047,-500.0,0.0002624,2]
[331543739,1720475452056,-500.0,0.0002624,2]
[331543740,1720475452065,-500.0,0.0002624,2]
[331543741,1720475452074,-500.0,0.0002624,2]
[331543742,1720475452083,-500.0,0.0002624,2]
[331543743,1720475452092,-500.0,0.0002624,2]
[331543744,1720475452101,-500.0,0.0002624,2]
[331543745,1720475452110,-500.0,0.0002624,2]
[331543746,1720475452120,-500.0,0.0002624,2]
[331543747,1720475452129,-500.0,0.0002624,2]
[331543748,1720475452138,-500.0,0.0002624,2]
[331543749,1720475452148,-500.0,0.0002624,2]
[331543750,1720475452157,-500.0,0.0002624,2]
[331543751,1720475452166,-500.0,0.0002624,2]
[331543752,1720475452176,-500.0,0.0002624,2]
[331543753,1720475452185,-500.0,0.0002624,2]
[331543754,1720475452195,-500.0,0.0002624,2]
[331543755,1720475452204,-500.0,0.0002624,2]
[331543756,1720475452215,-500.0,0.0002624,2]
[331543757,1720475452225,-500.0,0.0002624,2]
[331543758,1720475452235,-500.0,0.0002624,2]
[331543759,1720475452244,-500.0,0.0002624,2]
[331543760,1720475452254,-500.0,0.0002624,2]
[331543761,1720475452264,-500.0,0.0002624,2]
[331543762,1720475452274,-500.0,0.0002624,2]
[331543763,1720475452283,-500.0,0.0002624,2]
[331543764,1720475452293,-500.0,0.0002624,2]
[331543765,1720475452302,-500.0,0.0002624,2]
[331543766,1720475452312,-500.0,0.0002624,2]
[331543767,1720475452321,-500.0,0.0002624,2]
[331543768,1720475452332,-500.0,0.0002624,2]
[331543769,1720475452342,-500.0,0.0002624,2]
[331543770,1720475452352,-500.0,0.0002624,2]
[331543771,1720475452367,-500.0,0.0002624,2]
[331543772,1720475452377,-500.0,0.0002624,2]
[331543773,1720475452388,-500.0,0.0002624,2]
[331543774,1720475452399,-500.0,0.0002624,2]
[331543775,1720475452409,-500.0,0.0002624,2]
[331543776,1720475452419,-500.0,0.0002624,2]
[331543777,1720475452429,-537.79998479,0.0002624,2]
[331543778,1720475452440,-150.0,0.0002631,2]
[331543779,1720475452452,-324.44253699,0.00026415,2]
[331543780,1720475452462,-655.98312372,0.00026415,2]
[331543781,1720475452473,-150.0,0.00026435,2]
[331543782,1720475452483,-150.0,0.00026484,2]
[331543783,1720475452494,-582.070905,0.00026498,67]
[331543784,1720475452504,-150.0,0.00026498,2]
[331543785,1720475452514,-423.4,0.00026547,2]
[331543786,1720475452524,-150.0,0.00026583,2]
[331543787,1720475452534,-500.0,0.00026634,2]
[331543788,1720475452544,-150.0,0.00026668,2]
[331543789,1720475452554,-150.0,0.00026673,2]
[331543790,1720475452563,-150.0,0.00026682,2]
[331543791,1720475452572,-235.757,0.00026762,2]
[331543792,1720475452582,-2594.126,0.00026762,2]
[331543793,1720475452591,-582.070905,0.00026798,60]
[331543794,1720475452601,-500.0,0.00026804,2]
[331543795,1720475452611,-150.0,0.00026807,2]
[331543796,1720475452622,-150.0,0.00026811,2]
[331543797,1720475452631,-5711.87948803,0.00026817,28]
[331543798,1720475452641,-157.14,0.00026899,2]
[331543799,1720475452650,-155.0,0.00027,2]
[331543800,1720475452659,-24661.40796821,0.00027,2]
[331543801,1720475452669,-860.724453,0.00027,2]
[331543802,1720475452678,-883.15780805,0.00027,7]
[331543803,1720475452688,-339.81835002,0.00027,7]
[331543804,1720475452697,-150.0,0.00027,2]
[331543805,1720475452706,-500.0,0.00027033,2]
[331543806,1720475452716,-582.070905,0.00027198,67]
[331543807,1720475452725,-171.8,0.00027311,2]
[331543808,1720475452734,-200.0,0.00027397,60]
[331543809,1720475452744,-151.0,0.00027397,7]
[331543810,1720475452753,-500.0,0.00027439,2]
[331543811,1720475452762,-622.070905,0.00027498,77]
[331543812,1720475452771,-214.5322,0.00027692,2]
[331543813,1720475452781,-2500.0,0.000277,2]
[331543814,1720475452790,-595.08,0.00027714,2]
[331543815,1720475452799,-211.1,0.00027714,2]
[331543816,1720475452808,-151.0,0.00027792,7]
[331543817,1720475452817,-23033.9531781,0.00027792,2]
[331543818,1720475452826,-449.070905,0.00027798,61]
[331543819,1720475452836,-391.0,0.0002783,15]
[331543820,1720475452845,-500.0,0.0002785,2]
[331543821,1720475452854,-71738.6231185,0.00027876,2]
[331543822,1720475452863,-157.14,0.00027895,2]
[331543823,1720475452873,-1450.0,0.00028,2]
[331543824,1720475452882,-150.0,0.0002804,2]
[331543825,1720475452891,-150.0,0.00028137,2]
[331543826,1720475452901,-733.070905,0.00028198,68]
[331543827,1720475452910,-500.0,0.00028268,2]
[331543828,1720475452919,-150.0,0.00028373,2]
[331543829,1720475452928,-150.0,0.00028422,2]
[331543830,1720475452937,-881.070905,0.00028498,89]
[331543831,1720475452946,-150.0,0.00028499,2]
[331543832,1720475452956,-150.0,0.00028531,2]
[331543833,1720475452965,-500.0,0.00028692,2]
[331543834,1720475452974,-151.070905,0.00028798,62]
[331543835,1720475452984,-423.4,0.0002881,2]
[331543836,1720475452993,-157.14,0.00028892,2]
[331543837,1720475453002,-150.0,0.0002894,2]
[331543838,1720475453011,-150.0,0.00028982,2]
[331543839,1720475453021,-439.53490789,0.00029122,2]
[331543840,1720475453030,-500.0,0.00029153,2]
[331543841,1720475453039,-733.070905,0.00029198,69]
[331543842,1720475453048,-150.0,0.00029436,2]
[331543843,1720475453057,-150.0,0.00029484,2]
[331543844,1720475453066,-150.0,0.00029487,2]
[331543845,1720475453075,-881.070905,0.00029498,90]
[331543846,1720475453084,-150.0,0.00029501,2]
[331543847,1720475453093,-150.0,0.00029525,2]
[331543848,1720475453103,-150.0,0.00029577,2]
[331543849,1720475453112,-300.0,0.00029621,2]
[331543850,1720475453121,-1000.0,0.00029663,2]
[331543851,1720475453497,-150.0,0.00029675,2]
[331543852,1720475453507,-150.0,0.00029756,2]
[331543853,1720475453517,-1776.720147,0.0002978,10]
[331543854,1720475453527,-881.070905,0.00029798,91]
[331543855,1720475453537,-1000.0,0.000298,10]
[331543856,1720475453546,-1000.0,0.0002982,10]
[331543857,1720475453556,-1000.0,0.0002984,10]
[331543858,1720475453565,-1000.0,0.0002986,10]
[331543859,1720475453575,-1000.0,0.0002988,10]
[331543860,1720475453585,-152.93,0.00029883,2]
[331543861,1720475453594,-157.14,0.00029888,2]
[331543862,1720475453608,-1000.0,0.000299,10]
[331543863,1720475453618,-1000.0,0.0002992,10]
[331543864,1720475453628,-1000.0,0.0002994,10]
[331543865,1720475453638,-1000.0,0.0002996,10]
[331543866,1720475453647,-1000.0,0.0002998,10]
[331543867,1720475453658,-199.80250871,0.0003,30]
[331543868,1720475453667,-285.04201943,0.0003,10]
[331543869,1720475453677,-1500.0,0.0003,2]
[331543870,1720475453687,-1804.79215589,0.0003,2]
[331543871,1720475453697,-151.0,0.0003,7]
[331543872,1720475453707,-1090.33432102,0.0003,2]
[331543873,1720475453717,-151.0,0.0003,7]
[331543874,1720475453726,-151.0,0.0003,7]
[331543875,1720475453737,-151.0,0.0003,7]
[331543876,1720475453747,-151.0,0.0003,7]
[331543877,1720475453757,-151.0,0.0003,7]
[331543878,1720475453766,-200.000002,0.0003,2]
[331543879,1720475453776,-150.0,0.0003,10]
[331543880,1720475453786,-1000.0,0.0003,11]
[331543881,1720475453795,-1515.74546581,0.0003,2]
[331543882,1720475453804,-171.8,0.0003006,4]
[331543883,1720475453814,-166.66666666,0.00030107,7]
[331543884,1720475453824,-151.14628751,0.00030132,7]
[331543885,1720475453834,-200.0,0.00030137,60]
[331543886,1720475453844,-300.0,0.00030164,2]
[331543887,1720475453853,-1465.59226279,0.00030176,7]
[331543888,1720475453863,-733.070905,0.00030198,70]
[331543889,1720475453874,-695.86816948,0.00030216,7]
[331543890,1720475453884,-160.54776831,0.00030362,7]
[331543891,1720475453894,-295.04491561,0.00030366,7]
[331543892,1720475453904,-150.0,0.00030391,2]
[331543893,1720475453914,-150.0,0.00030392,2]
[331543894,1720475453925,-2500.0,0.000304,2]
[331543895,1720475453935,-191.44176251,0.0003042,7]
[331543896,1720475453944,-695.86816948,0.00030437,7]
[331543897,1720475453955,-150.0,0.00030438,2]
[331543898,1720475453965,-161.11257916,0.00030449,7]
[331543899,1720475453976,-1342.17951759,0.00030487,7]
[331543900,1720475453986,-881.070905,0.00030498,111]
[331543901,1720475453997,-695.86816948,0.00030545,7]
[331543902,1720475454007,-150.0,0.0003055,2]
[331543903,1720475454017,-569.53970398,0.00030556,7]
[331543904,1720475454028,-151.0,0.00030556,7]
[331543905,1720475454038,-162.438514,0.00030556,7]
[331543906,1720475454048,-151.0,0.00030556,7]
[331543907,1720475454058,-162.438514,0.00030556,7]
[331543908,1720475454068,-151.0,0.00030556,7]
[331543909,1720475454078,-294.370539,0.00030556,7]
[331543910,1720475454088,-294.370539,0.00030556,7]
[331543911,1720475454098,-151.0,0.00030556,7]
[331543912,1720475454108,-151.0,0.00030556,7]
[331543913,1720475454118,-151.0,0.00030556,7]
[331543914,1720475454128,-151.0,0.00030556,7]
[331543915,1720475454138,-151.0,0.00030556,7]
[331543916,1720475454148,-300.0,0.00030559,2]
[331543917,1720475454158,-300.0,0.000306,2]
[331543918,1720475454168,-166.66666666,0.00030611,7]
[331543919,1720475454178,-548.0,0.00030613,30]
[331543920,1720475454188,-303.80542167,0.00030665,7]
[331543921,1720475454198,-151.0,0.00030681,7]
[331543922,1720475454208,-151.0,0.00030681,7]
[331543923,1720475454218,-151.0,0.00030681,7]
[331543924,1720475454228,-151.0,0.00030681,7]
[331543925,1720475454237,-160.54776831,0.00030722,7]
[331543926,1720475454247,-172.7089355,0.0003075,7]
[331543927,1720475454256,-1465.59226279,0.00030762,7]
[331543928,1720475454265,-1465.59226279,0.00030766,7]
[331543929,1720475454274,-695.86816948,0.00030781,7]
[331543930,1720475454283,-881.070905,0.00030798,92]
[331543931,1720475454292,-151.0,0.00030798,7]
[331543932,1720475454301,-154.773624,0.00030798,7]
[331543933,1720475454310,-151.0,0.00030798,7]
[331543934,1720475454319,-197.636856,0.00030798,7]
[331543935,1720475454327,-197.636856,0.00030798,7]
[331543936,1720475454336,-151.0,0.00030798,7]
[331543937,1720475454345,-151.0,0.00030798,7]
[331543938,1720475454354,-151.0,0.00030798,7]
[331543939,1720475454368,-417.841596,0.00030798,7]
[331543940,1720475454377,-417.841596,0.00030798,7]
[331543941,1720475454386,-151.0,0.00030798,7]
[331543942,1720475454395,-151.0,0.00030798,7]
[331543943,1720475454405,-151.329121,0.00030798,7]
[331543944,1720475454414,-501.548171,0.00030798,7]
[331543945,1720475454423,-151.0,0.00030798,7]
[331543946,1720475454433,-501.548171,0.00030798,7]
[331543947,1720475454443,-151.0,0.00030798,7]
[331543948,1720475454452,-151.0,0.00030798,7]
[331543949,1720475454461,-235.26095,0.00030798,7]
[331543950,1720475454484,-151.0,0.00030798,7]
[331543951,1720475454493,-151.0,0.00030798,7]
[331543952,1720475454503,-151.0,0.00030798,7]
[331543953,1720475454514,-184.529518,0.00030798,7]
[331543954,1720475454524,-151.0,0.00030798,7]
[331543955,1720475454535,-184.529518,0.00030798,7]
[331543956,1720475454545,-151.0,0.00030798,7]
[331543957,1720475454557,-151.0,0.00030798,7]
[331543958,1720475454567,-151.0,0.00030798,7]
[331543959,1720475454577,-156.652376,0.00030798,7]
[331543960,1720475454587,-2179.841801,0.00030798,7]
[331543961,1720475454597,-2179.841801,0.00030798,7]
[331543962,1720475454608,-500.0,0.00030842,3]
[331543963,1720475454619,-189.7115156,0.00030844,7]
[331543964,1720475454629,-500.0,0.00030851,3]
[331543965,1720475454639,-500.0,0.00030859,3]
[331543966,1720475454649,-159.6669257,0.00030865,7]
[331543967,1720475454659,-500.0,0.00030868,3]
[331543968,1720475454669,-500.0,0.00030877,3]
[331543969,1720475454679,-157.14,0.00030884,2]
[331543970,1720475454690,-500.0,0.00030886,3]
[331543971,1720475454701,-500.0,0.00030895,3]
[331543972,1720475454712,-1000.0,0.000309,2]
[331543973,1720475454722,-500.0,0.00030903,3]
[331543974,1720475454732,-500.0,0.00030912,3]
[331543975,1720475454742,-500.0,0.00030921,3]
[331543976,1720475454752,-500.0,0.0003093,3]
[331543977,1720475454762,-500.0,0.00030939,3]
[331543978,1720475454772,-300.0,0.00030947,2]
[331543979,1720475454782,-500.0,0.00030947,3]
[331543980,1720475454792,-500.0,0.00030956,3]
[331543981,1720475454802,-500.0,0.00030965,3]
[331543982,1720475454812,-151.0,0.00030986,7]
[331543983,1720475454823,-151.0,0.00030986,7]
[331543984,1720475454833,-81.08029279,0.00030986,7]
[331543985,1720475457125,-69.91970721,0.00030986,7]
[331543986,1720475457135,-182.093183,0.00030986,7]
[331543987,1720475457144,-151.0,0.00030986,7]
[331543988,1720475457153,-151.0,0.00030986,7]
[331543989,1720475457163,-19.41724744,0.00030986,7]
[331543990,1720475457174,-131.58275256,0.00030986,7]
[331543991,1720475457184,-151.0,0.00030986,7]
[331543992,1720475457193,-151.0,0.00030986,7]
[331543993,1720475457202,-151.0,0.00030986,7]
[331543994,1720475457212,-695.86816948,0.00030995,7]
[331543995,1720475457221,-1000.0,0.00031,2]
[331543996,1720475457231,-166.66666666,0.00031005,7]
[331543997,1720475457259,-423.4,0.00031074,2]
[331543998,1720475457269,-1465.59226279,0.0003108,7]
[331543999,1720475457278,-151.0,0.00031139,7]
[331544000,1720475457287,-151.0,0.00031139,7]
[331544001,1720475457297,-151.0,0.00031139,7]
[331544002,1720475457306,-151.0,0.00031139,7]
[331544003,1720475457315,-627.59406012,0.00031179,7]
[331544004,1720475457325,-733.070905,0.00031198,71]
[331544005,1720475457334,-2128.25483143,0.00031234,7]
[331544006,1720475457344,-295.04491561,0.00031239,7]
[331544007,1720475457354,-1465.59226279,0.00031272,7]
[331544008,1720475457364,-201.16496917,0.00031277,7]
[331544009,1720475457375,-254.51991041,0.00031331,7]
[331544010,1720475457384,-201.16496917,0.00031361,7]
[331544011,1720475457393,-166.66666666,0.00031398,7]
[331544012,1720475457403,-303.80542167,0.00031465,7]
[331544013,1720475457412,-166.66666666,0.00031495,7]
[331544014,1720475457422,-881.070905,0.00031498,111]
[331544015,1720475457432,-500.0,0.00031502,2]
[331544016,1720475457442,-160.54776831,0.00031521,7]
[331544017,1720475457454,-569.53970398,0.00031584,7]
[331544018,1720475457463,-295.04491561,0.00031605,7]
[331544019,1720475457472,-303.80542167,0.00031629,7]
[331544020,1720475457483,-172.7089355,0.00031636,7]
[331544021,1720475457493,-166.66666666,0.00031637,7]
[331544022,1720475457502,-166.66666666,0.00031648,7]
[331544023,1720475457512,-854.69,0.00031652,2]
[331544024,1720475457521,-838.51,0.00031652,2]
[331544025,1720475457530,-627.59406012,0.00031693,7]
[331544026,1720475457540,-1465.59226279,0.00031715,7]
[331544027,1720475457550,-569.53970398,0.00031759,7]